Cogmind - Beta 14 @@@ ROGUE MODE // 2024.11.09 @ 09:49:27 Player: Kate+Gabe4evr Result: Self-destructed Performance ------------- Evolutions (2) 1000 Regions Visited (4) 800 Robots Destroyed (38) 190 Value Destroyed (864) 864 Prototype IDs (1) 20 Alien Tech Used (0) 0 Bonus (0) 0 TOTAL SCORE: 2874 Bonus ------- None Cogmind --------- Core Integrity 123/550 Matter 149/300 Energy 215/265 System Corruption 3% Temperature Critical (790) Movement Rolling (360) Ox18 Location -8/Materials Parts ------- > --- POWER (2) -------- Improved Ion Engine > --- PROPULSION (4) --- Cargo Legs Armored Wheel Armored Wheel > --- UTILITY (3+2) ---- Small Storage Unit Humpback (++) Signal Interpreter Advanced Targeting Computer > --- WEAPON (2) ------- Heavy Particle Cannon > --- INVENTORY (35) --- Light Treads Light Treads Advanced Treads Wheel Huge Storage Unit Experimental Sensor Array Targeting Computer Targeting Computer Weapon Shielding Light Armor Plating Light Armor Plating Plasma Cutter Plasma Cutter Makeshift Hammer Blade Trap Blade Trap Blade Trap Peak State ------------ > --- POWER ------------ Improved Ion Engine Improved Ion Engine > --- PROPULSION ------- Cargo Legs Armored Wheel Armored Wheel > --- UTILITY ---------- Small Storage Unit Humpback Signal Interpreter Advanced Targeting Computer > --- WEAPON ----------- Heavy Particle Cannon Assault Rifle > --- INVENTORY -------- Improved Ion Engine Light Treads Light Treads Advanced Treads Wheel Huge Storage Unit Experimental Sensor Array Targeting Computer Targeting Computer Weapon Shielding Light Armor Plating Light Armor Plating Plasma Cutter Plasma Cutter Makeshift Hammer Blade Trap Blade Trap Blade Trap [Rating: 38] Favorites ----------- Power Light Ion Engine Engine Light Ion Engine Propulsion Wheel Leg Cargo Legs Wheel Wheel Utility Small Storage Unit Storage Small Storage Unit Processor Signal Interpreter Protection Weapon Shielding Weapon Assault Rifle Energy Gun EM Pulse Gun Energy Cannon Heavy Particle Cannon Ballistic Gun Assault Rifle Impact Weapon Makeshift Hammer Build | -11 -10 -10 -10 -8 ------- Run | Yrd Mat Min Sub Mat Slots Evolved 4 | . . . . 4 Power 1 | . . . . 1 Propulsion 2 | . . . . 2 Utility 1 | . . . . 1 Weapon . | . . . . . Parts Attached 30 | 6 1 5 5 13 Power 9 | 1 . 2 1 5 Engine 9 | 1 . 2 1 5 Core . | . . . . . Reactor . | . . . . . Propulsion 8 | 2 . 2 1 3 Treads . | . . . . . Leg 1 | . . . 1 . Wheel 7 | 2 . 2 . 3 Hover . | . . . . . Flight . | . . . . . Utility 5 | 1 1 1 1 1 Device . | . . . . . Storage 2 | 1 . . 1 . Processor 2 | . . 1 . 1 Hackware . | . . . . . Protection 1 | . 1 . . . Artifact . | . . . . . Weapon 8 | 2 . . 2 4 Energy Gun 2 | 1 . . . 1 Energy Cannon 1 | . . . . 1 Ballistic Gun 4 | 1 . . 1 2 Ballistic Cannon . | . . . . . Launcher . | . . . . . Special Weapon . | . . . . . Impact Weapon 1 | . . . 1 . Slashing Weapon . | . . . . . Piercing Weapon . | . . . . . Special Melee Weapon . | . . . . . Unidentified Prototypes 1 | . . . 1 . Parts Lost 8 | . . 1 2 5 Power 3 | . . . 1 2 Propulsion 1 | . . 1 . . Utility . | . . . . . Weapon 4 | . . . 1 3 Highest Loss Streak 3 | . . 1 1 3 To Critical Strikes . | . . . . . Average Slot Usage (%) 86 | . 89 98 78 76 Engine 12 | . 14 14 11 13 Leg 4 | . . . 8 7 Wheel 16 | . 28 26 5 13 Storage 15 | . 14 14 17 15 Processor 8 | . . 5 11 12 Protection 3 | . 4 8 . . Energy Gun 7 | . 14 14 1 4 Ballistic Gun 11 | . 14 14 12 6 Impact Weapon 3 | . . . 8 1 Peak Build Rating 38 | 6 7 8 27 38 Average Rating 18 | 4 6 7 22 33 On Entrance 9 | . 6 7 8 27 Naked Turns . | . . . . . Heaviest Build 227 | 12 13 13 213 227 Greatest Support 55 | 26 26 26 55 55 Greatest Overweight (x) 17 | . . . 4 17 Average Overweight (x) . | . . . . 7 Largest Inventory Capacity 35 | 8 8 8 35 35 Average Capacity 18 | 7 8 8 23 35 Most Carried 20 | 2 2 8 8 20 Average Carried 7 | 1 2 5 7 13 Final Capacity 35 | 8 8 8 35 35 Final Carried 17 | 2 2 7 7 17 Class Distribution -------------------- 59% | Mutant 40% | Hauler-Mutant Dominant Class ---------------- Mutant | -10/Materials Mutant | -10/Mines Hauler-Mutant | -10/Subcaves Hauler-Mutant | -8/Materials Resources | -11 -10 -10 -10 -8 ----------- Run | Yrd Mat Min Sub Mat Matter Collected 767 | 249 . 181 76 261 Remotely . | . . . . . Salvage Created 1139 | . . 380 138 621 Parts 86 | . . 23 9 54 Haulers Intercepted . | . . . . . Recyclers Shooed . | . . . . . Parts Field Recycled . | . . . . . Retrieved Matter . | . . . . . Parts Self-Destructed 5 | . . . 5 . Prevented 4 | . . . 4 . Kills | -11 -10 -10 -10 -8 ------- Run | Yrd Mat Min Sub Mat Combat Hostiles Destroyed 35 | . . 9 6 20 Guns 29 | . . 9 5 15 Cannons 5 | . . . . 5 Classes Destroyed 6 | . . 4 1 1 Worker 2 | . . 1 . 1 Tunneler 1 | . . 1 . . Swarmer 20 | . . 3 5 12 Grunt 9 | . . 6 . 3 Brawler 1 | . . . . 1 Sentry 5 | . . . 1 4 Best Kill Streak 5 | . . 3 3 5 Combat Bots Only 5 | . . 3 3 5 Max Kills in Single Turn 1 | . . 1 1 1 Gunslinging . | . . . . . Exploded . | . . . . . Melee . | . . . . . Uniques/NPCs Destroyed . | . . . . . Combat | -11 -10 -10 -10 -8 -------- Run | Yrd Mat Min Sub Mat Hostile Shots Fired 220 | . 2 31 37 150 Missed 49 | . 1 10 10 28 Damage Taken 2190 | . 16 271 253 1650 Core 555 | . . 65 63 427 Absorbed by Shields . | . . . . . Redirected to Shielding 15 | . . 15 . . Core Remaining (%) 74 | 100 . . 48 . Volleys Fired 106 | . . 26 12 68 Largest 2 | . . 2 2 2 Hottest 95 | . . 60 60 95 Shots Fired 176 | . . 53 21 102 Gun 155 | . . 53 21 81 Cannon 21 | . . . . 21 Launcher . | . . . . . Special . | . . . . . Kinetic 97 | . . 26 16 55 Thermal 47 | . . . . 47 Explosive . | . . . . . Electromagnetic 32 | . . 27 5 . Robot Hit Streak 10 | . . 8 5 10 Robot Miss Streak 2 | . . 2 2 2 Penetration Max . | . . . . . Secondary Targets 4 | . . 1 2 1 Max Gunslinging Chain 1 | . . 1 1 1 Shots Hit Robots 119 | . . 37 13 69 Core Hits 55 | . . 19 6 30 Critical Kills . | . . . . . Critical Parts Destroyed . | . . . . . Critical Strikes 1 | . . 1 . . Corrupt 1 | . . 1 . . Melee Attacks 7 | . . . 7 . Impact 7 | . . . 7 . Slashing . | . . . . . Piercing . | . . . . . Sneak Attacks . | . . . . . Combat Hostiles . | . . . . . Follow-up Attacks . | . . . . . Damage Inflicted 1902 | . . 549 225 1128 Guns 1323 | . . 458 137 728 Cannons 400 | . . . . 400 Explosions 91 | . . 91 . . Melee 88 | . . . 88 . Ramming . | . . . . . Kinetic 746 | . . 206 92 448 Thermal 771 | . . 91 . 680 Explosive . | . . . . . Electromagnetic 297 | . . 252 45 . Impact 88 | . . . 88 . Slashing . | . . . . . Piercing . | . . . . . Highest Corruption 3 | . 2 2 2 3 Average Corruption 2 | . 2 2 2 3 Corruption Purged . | . . . . . Corruption Blocked . | . . . . . Effects 33 | . 1 17 13 2 Message Errors 6 | . . 4 1 1 Matter Fused 10 | . 1 4 5 . Heat Flow Errors 3 | . . 1 1 1 Energy Discharges 6 | . . 4 2 . Data Loss (minor) 1 | . . 1 . . Data Loss (major) 2 | . . 1 1 . Misfires 4 | . . 1 3 . Alerts 1 | . . 1 . . Overload Shots . | . . . . . Overflow Damage 64 | . . . 48 16 Projectiles 16 | . . . . 16 Explosions . | . . . . . Melee 48 | . . . 48 . Knockbacks . | . . . . . Impact . | . . . . . Kinetic . | . . . . . Secondary . | . . . . . Self-Inflicted Damage . | . . . . . Shots . | . . . . . Rammed . | . . . . . Targets Rammed . | . . . . . Kicked . | . . . . . Crushed . | . . . . . Highest Temperature 790 | . . 200 232 790 Average Temperature 163 | . . 33 133 209 Received Heat Transfer 744 | . 9 123 18 594 Effects 27 | . . . . 27 Shutdowns 7 | . . . . 7 Energy Bleed 1 | . . . . 1 Interference 2 | . . . . 2 Matter Decay 4 | . . . . 4 Short Circuit 2 | . . . . 2 Damage (major) 9 | . . . . 9 Damage (core) 2 | . . . . 2 Siege Activations . | . . . . . Robots Corrupted 1 | . . . 1 . Combat Hostiles 1 | . . . 1 . Parts Fried 4 | . . 1 3 . Impact Corruptions 2 | . . . 2 . Robots Melted . | . . . . . Combat Hostiles . | . . . . . Parts Melted 1 | . . . . 1 Heat Transferred 1395 | . . 100 . 1295 Parts Sabotaged . | . . . . . Parts Stolen . | . . . . . Parts Stripped . | . . . . . Power Chain Reactions 1 | . . 1 . . Alert | -11 -10 -10 -10 -8 ------- Run | Yrd Mat Min Sub Mat Peak Influence 334 | . 30 187 . 334 Initial 11 | . . 11 . . Average 92 | . 2 77 . 151 Maximum Alert Level 1 | . . . . 1 Low Security (%) 90 | 100 100 100 . 69 Level 1 9 | . . . . 30 Level 2 . | . . . . . Level 3 . | . . . . . Level 4 . | . . . . . Level 5 . | . . . . . High Security . | . . . . . Max Security . | . . . . . Squads Dispatched 2 | . . . . 2 Investigation . | . . . . . Extermination . | . . . . . Reinforcement . | . . . . . Assault . | . . . . . Garrison 2 | . . . . 2 Intercept . | . . . . . Searches Triggered . | . . . . . Construction Impeded . | . . . . . Haulers Reinforced . | . . . . . Active Scanning Responses . | . . . . . Cargo Convoy Interrupts . | . . . . . Stealth | -11 -10 -10 -10 -8 --------- Run | Yrd Mat Min Sub Mat Distress Signals 4 | . . . . 4 Communications Jammed . | . . . . . Distress Signals . | . . . . . Times Spotted 46 | . 2 11 6 27 Peak Tracking Total 6 | . 1 2 3 6 Tactical Retreats 3 | . . 2 . 1 Traps | -11 -10 -10 -10 -8 ------- Run | Yrd Mat Min Sub Mat Traps Triggered 1 | . 1 . . . Indirectly . | . . . . . Trap Hack Attempts . | . . . . . Triggered . | . . . . . Disarmed . | . . . . . Reprogrammed . | . . . . . Reused . | . . . . . Traps Extracted . | . . . . . Installed . | . . . . . Triggered . | . . . . . Most Traps Carried 3 | . . 3 3 3 Machines | -11 -10 -10 -10 -8 ---------- Run | Yrd Mat Min Sub Mat Machines Disabled 2 | . . 1 1 . Max in Single Turn 1 | . . 1 1 . Machines Repaired . | . . . . . Machines Dismantled . | . . . . . Machines Sabotaged . | . . . . . Overloaded Fab Kills . | . . . . . Hacking | -11 -10 -10 -10 -8 --------- Run | Yrd Mat Min Sub Mat Machines Accessed 1 | . . . 1 . Terminals . | . . . . . Fabricators . | . . . . . Repair Stations . | . . . . . Recycling Units . | . . . . . Scanalyzers . | . . . . . Garrison Access . | . . . . . Total Hacks 8 | . . . 8 . Successful 8 | . . . 8 . Failed . | . . . . . Catastrophic . | . . . . . Database Lockouts . | . . . . . Manual . | . . . . . Terminals . | . . . . . Fabricators . | . . . . . Repair Stations . | . . . . . Recycling Units . | . . . . . Scanalyzers . | . . . . . Garrison Access . | . . . . . Terminal Hacks 8 | . . . 8 . Record 8 | . . . 8 . Fabricator Hacks . | . . . . . Repair Station Hacks . | . . . . . Recycling Unit Hacks . | . . . . . Scanalyzer . | . . . . . Garrison Access Hacks . | . . . . . Unauthorized Hacks . | . . . . . Terminals . | . . . . . Fabricators . | . . . . . Repair Stations . | . . . . . Recycling Units . | . . . . . Scanalyzers . | . . . . . Garrison Access . | . . . . . Data Cores Recovered . | . . . . . Used . | . . . . . Hacking Detections . | . . . . . Full Trace Events . | . . . . . Feedback Events . | . . . . . Feedback Blocked . | . . . . . Robot Schematics Acquired . | . . . . . Robots Built . | . . . . . Authchips . | . . . . . Time . | . . . . . Total Robot Build Rating . | . . . . . Part Schematics Acquired . | . . . . . Parts Built . | . . . . . Authchips . | . . . . . Time . | . . . . . Total Part Build Rating . | . . . . . Parts Repaired . | . . . . . Time . | . . . . . Parts Recycled . | . . . . . Recycled Matter . | . . . . . Retrieved Matter . | . . . . . Retrieved Components . | . . . . . Parts Scanalyzed . | . . . . . Part Schematics Acquired . | . . . . . Parts Damaged . | . . . . . Bothacking | -11 -10 -10 -10 -8 ------------ Run | Yrd Mat Min Sub Mat Used RIF Installer . | . . . . . Robots Hacked . | . . . . . Non-combat . | . . . . . Combat . | . . . . . Robot Hacks Applied . | . . . . . Relay Couplers Released . | . . . . . Fabnet Peak Effective % . | . . . . . Robots Rewired . | . . . . . Allies Hacked . | . . . . . Hacks Repelled . | . . . . . Allies | -11 -10 -10 -10 -8 -------- Run | Yrd Mat Min Sub Mat Total Allies . | . . . . . Largest Group . | . . . . . Highest-Rated Group . | . . . . . Highest-Rated Ally . | . . . . . Total Orders . | . . . . . Ally Attacks . | . . . . . Total Damage . | . . . . . Kills . | . . . . . Allies Corrupted . | . . . . . Allies Melted . | . . . . . Intel | -11 -10 -10 -10 -8 ------- Run | Yrd Mat Min Sub Mat Robot Analysis Total . | . . . . . Derelict Logs Recovered 2 | . . 1 1 . Drone Launches . | . . . . . Drone Recoveries . | . . . . . Exploration | -11 -10 -10 -10 -8 ------------- Run | Yrd Mat Min Sub Mat Turns Passed 2851 | 54 190 1031 956 620 Spaces Moved 1898 | 50 210 953 518 167 Core 6 | 4 . . 2 . Treads . | . . . . . Legs 339 | . . . 307 32 Wheels 1553 | 46 210 953 209 135 Hover . | . . . . . Flight . | . . . . . Fastest Speed 50 | 50 90 80 80 210 Average Speed 124 | 86 90 85 174 246 Slowest Speed 345 | 90 90 100 340 345 Overloaded Moves . | . . . . . Propulsion Burnouts . | . . . . . Robots Hopped . | . . . . . Cave-ins Triggered . | . . . . . Exploration Rate (%) 42 | 3 38 99 51 19 Regions Visited 4 Branch Regions 2 Pre-discovered Areas 2 | . . 1 1 . Known Exits Taken 2 | . . 1 1 . Unknown Exits Taken 2 | 1 1 . . . Scrap Searched 1 | . . 1 . . Spaces Dug . | . . . . . Terrain Destroyed 15 | . . 10 . 5 Melee . | . . . . . Projectile 5 | . . . . 5 AOE 10 | . . 10 . . Terrain Rammed . | . . . . . Walls Destroyed . | . . . . . Machines Disabled . | . . . . . Actions | -11 -10 -10 -10 -8 --------- Run | Yrd Mat Min Sub Mat Total 2204 | 57 210 1120 545 272 Wait 132 | . . 124 1 7 Move 1894 | 49 209 952 517 167 Hop . | . . . . . Pick Up 22 | 2 . 7 1 12 Fast Attach 15 | 6 1 2 2 4 Attach 9 | . . . 2 7 Detach 6 | . . 1 1 4 Swap 6 | . . 3 1 2 Drop 7 | . . 5 1 1 Fire 106 | . . 26 12 68 Melee 7 | . . . 7 . Ram . | . . . . . Kick . | . . . . . Crush . | . . . . . Escape Stasis . | . . . . . Rewire . | . . . . . Trap . | . . . . . Miscellaneous . | . . . . . Route ------- -11/Scrapyard -10/Materials (discovered 2 exits: *Mat / [*Min]) -10/Mines (discovered 3 exits: *Mat x2 / *Sub) -10/Subcaves -8/Materials History --------- Turn | Location | Event 7 | -11/Scrapyard | Discovered new exit (range 15) 55 | -11/Scrapyard | Entered Materials 101 | -10/Materials | Discovered new exit (range 14) 146 | -10/Materials | Discovered new exit (range 12) 245 | -10/Materials | Entered Mines 305 | -10/Mines | Build established: Mutant 426 | -10/Mines | Discovered new exit (range 15) 512 | -10/Mines | Learned location of Zion (-6) 628 | -10/Mines | Found a damaged Exp. Sensor Array with a note attached 630 | -10/Mines | Found Prototype Device 789 | -10/Mines | Found a hidden stash of uninstalled traps 813 | -10/Mines | Discovered new exit (range 9) 877 | -10/Mines | Identified exit to Materials 1274 | -10/Mines | Discovered new exit (range 3) 1275 | -10/Mines | Identified exit to Subcaves 1276 | -10/Mines | Entered Subcaves 1349 | -10/Subcaves | Shifting Twisted Machinery released Mak. Hammer 1458 | -10/Subcaves | Visited 4L-MR0's lab 1473 | -10/Subcaves | Found Prototype Leg 1473 | -10/Subcaves | Identified Cargo Legs 1475 | -10/Subcaves | Attached Cargo Legs, gained temporary slots: Utility x2 1623 | -10/Subcaves | Core integrity fell below 50% 1669 | -10/Subcaves | Shifting Twisted Machinery released Sub. Monowheel 1678 | -10/Subcaves | Shifting Twisted Machinery released Humpback 1999 | -10/Subcaves | Build established: Hauler-Mutant 2164 | -10/Subcaves | Discovered new exit (range 11) 2201 | -10/Subcaves | Identified exit to Materials 2232 | -10/Subcaves | Entered Materials 2232 | -8/Materials | Evolved 4 slots: Power x1, Propulsion x2, Utility x1 2687 | -8/Materials | Garrison activated, responded to threat 2821 | -8/Materials | Lost 3 parts (1p2w) 2842 | -8/Materials | Core integrity fell below 50% 2852 | -8/Materials | Self-destructed Last Messages --------------- 02839_ K-01 Serf collects debris. 02840_ Overheating: Matter decay (-20). 02841_ Overheating: Sml. Storage Unit damaged (-13). 02841_ Overheating: Signal Interpreter damaged (-4). 02841_ Overheating: Cargo Legs damaged (-74). 02841_ Overheating: Imp. Ion Engine damaged (-15). 02842_ Overheating: Core damaged (-99). 02842_ Imp. Ion Engine destroyed. 02843_ Power failure, Imp. Ion Engine shutdown. 02844_ Overheating: Matter decay (-22). 02844_ Critical hit (Burn: +37). 02845_ Arm. Wheel broken. 02845_ Overheating: Short circuit. 02847_ K-01 Serf collects debris. 02848_ Overheating: Energy bleed (-39). 02850_ Destroyed Lgt. Nuclear Core. 02851_ Power failure, Imp. Ion Engine shutdown. 02851_ Overheating: Core damaged (-71). 02852_ Overheating: System interference. 02852_ Hvy. Particle Cannon temporarily disabled. Map ----- +----------------------------------------------------+ | ??# """ # #????????????????????? | | ??# """?# #????????????????????? | | ??# """?# % #????????????????????? | | ??# ??# #????????????????????? | | ???#??########+## #????????????????????? | | ??????# ## ##????????????????????? | | ??????#== ## #?????????????????????? | | ??????#== ## #?????????????????????? | | ??????# ## [#?#+##????????????????? | | ??????############ =%### ?????????????????? | | ????????????????# %=## ########??????????? | | ????????????????# %##%# """ / #?????????? | | ????????????????+ + "T" #?????????? | | ????????????????# ## # /[#?????????? | | ????????????????# ## #?? /]#?????????? | | ????????????????###g#### #???? ###?????????? | | ?????????????????## ???# #?????????????????? | | ?????????????????#; #??# #?????????????????? | | ?????????????????+ ####+##????????????????? | | ?????????????????? ; #????????????????? | | ?????????????????# *# /=]#????????????????? | | ?????????????????+[=+ /]]#????????????????? | | ?????????????????#;%# /]]#????????????????? | | ??????????????????#=# #????????????????? | | ??????????????????# ; =#????????????????? | | ??????????????????#@# #????????????????? | | ?????????##+#######%=##+######+#####???????? | | ?????????# [==% % ????? | | ?????????# *%! * ????? | | ?????????# % !%= ????? | | ?????????# ###################+#####?????? | | ?????????# ???????????????????????????????? | | ?????????#?????????????????????????????????? | | ???????????????????????????????????????????? | | ???????????????????????????????????????????? | | ???????????????????????????????????????????? | | ???????????????????????????????????????????? | | ???????????????????????????????????????????? | | ???????????????????????????????????????????? | | ???????????????????????????????????????????? | | ???????????????????????????????????????????? | | ???????????????????????????????????????????? | | ???????????????????????????????????????????? | | ???????????????????????????????????????????? | | ???????????????????????????????????????????? | | ???????????????????????????????????????????? | | ???????????????????????????????????????????? | | ???????????????????????????????????????????? | | ???????????????????????????????????????????? | | ???????????????????????????????????????????? | +----------------------------------------------------+ Best States ------------- Heat Dissipation 31 Energy Generation 19 Energy Capacity 430 Matter Stores 300 Matter Capacity 300 Sight Range 16 Terrain Scan Density 10 Weapon Shielding 33 Evasion (%) 55 Targeting Accuracy 8 Item Schematics ----------------- None Robot Schematics ------------------ None Fabricated ------------ Nothing Alien Tech Used ----------------- None Achievements -------------- Tank Challenges ------------ None Game ------ Seed ChromaticRemoteInterrupter Manual? 0 Play Time 00:16:43 Cumulative 63.9 hours Start 2024.11.08 @ 13:18:08 End 2024.11.09 @ 09:49:27 Sessions 2 Manual Loads 0 Difficulty Rogue Special Mode None Game No. 118 Rogue 118 Adventurer 0 Explorer 0 Win Type - Total 1 Types 1/0/0/0/0/0/0/0/0 Lore% 50 Gallery% 54 Achievement% 46 Wizard Run 0 Options --------- Layout 0 ASCII 0 Keyboard 1 Movement Numpad Keybinds 0 Fullscreen 2 Font 24/Terminus Map View 76x50 Zoom Use 0% Tactical HUD 1 Map Filters NONE Filters NONE Steam 1 RUN: ee1a244f-76de-4c26-8935-c084c1e668b4